Cogmind - Beta 15 @@@ ROGUE MODE // 2025.05.24 @ 19:29:10 Player: Demo Result: Destroyed by C-57 Dissector with Dual-blade Saw Performance ------------- Evolutions (8) 4000 Regions Visited (18) 3600 Robots Destroyed (258) 1290 Value Destroyed (13493) 13493 Prototype IDs (53) 1060 Alien Tech Used (7) 1400 Bonus (13809) 13809 TOTAL SCORE: 38652 Bonus ------- Pacifist 200 High Alert Combat Kills 5659 Follower Combat Kills 3845 Network Hubs Disabled 200 Registered with UFD 300 Met Optimus in HQ 500 Built Enhanced Grunts 300 A7 Reached Mainframe 300 Met R17 at Cetus 500 Met R17 at Research 2000 Scanned by Researcher 500 Friendly Fire -495 Cogmind --------- Core Integrity 0/1450 Matter 0/300 Energy 100/100 System Corruption 24% Temperature Cool (0) Movement Flying (40) Location -2/Research Parts ------- > --- POWER (2) -------- (None) > --- PROPULSION (6) --- Field Propulsion Array > --- UTILITY (11) ----- Experimental Targeting Computer > --- WEAPON (4) ------- (None) > --- INVENTORY (5) ---- Core Reset Matrix Enhanced Nova Cannon Great Axe Great Axe Peak State ------------ > --- POWER ------------ Light Quantum Reactor Light Quantum Reactor > --- PROPULSION ------- Myomer Leg Biometal Leg Heavy Shield Leg Heavy Shield Leg > --- UTILITY ---------- Advanced Heat Sink Advanced Heat Sink Advanced Heat Sink Medium Storage Unit Advanced Signal Interpreter Experimental Terrain Scan Processor Partition Strike Chip Experimental Targeting Computer Advanced Phase Shifter Makeshift Core Shielding Improved Thermal Shield > --- WEAPON ----------- Heavy Laser Phase Gun Enhanced Nova Cannon Enhanced Hardcell Cannon > --- INVENTORY -------- Heavy Shield Leg Heavy Shield Leg Core Reset Matrix Gamma Rifle Sigix Terminator Sigix Broadsword [Rating: 170] Favorites ----------- Power Light Antimatter Reactor Engine Improved Ion Engine Power Core Light Nuclear Core Reactor Light Antimatter Reactor Propulsion Carbon-fiber Leg Treads Enhanced Armored Medium Treads Leg Carbon-fiber Leg Wheel Overtuned Huge Scrapsphere Hover Unit Combat Airjet Flight Unit Improved Flight Unit Utility Advanced Heat Sink Device Advanced Heat Sink Storage High-capacity Storage Unit Processor Advanced Signal Interpreter Hackware Experimental Hacking Suite Protection Centrium Medium Armor Plating Weapon Advanced Variable Charge Gun Energy Gun Advanced Variable Charge Gun Energy Cannon Matter Neutralizer Ballistic Gun Advanced KE Penetrator Ballistic Cannon Enhanced Hardcell Cannon Launcher EMP Blaster Special Weapon Plasma Cutter Impact Weapon Shock Maul Slashing Weapon Great Axe Piercing Weapon Enhanced Force Lance Build | -11 -10 -9 -9 -8 -8 -8 -8 -6 -5 -5 -5 -5 -5 -4 -4 -3 -3 -2 ------- Run | Yrd Mat Mat Min Mat Sto Rec Scr Fac Fac Ext Cet Arc Hub Fac Arm Res Qua Res Slots Evolved 16 | . . 2 . 2 . . . 4 2 . . . . 2 . 2 . 2 Power 1 | . . . . . . . . . . . . . . 1 . . . . Propulsion 4 | . . 2 . 2 . . . . . . . . . . . . . . Utility 9 | . . . . . . . . 4 . . . . . 1 . 2 . 2 Weapon 2 | . . . . . . . . . 2 . . . . . . . . . Parts Attached 353 | 2 2 11 . 3 25 . 6 22 10 33 11 3 5 34 46 22 48 70 Power 46 | . . 1 . 1 4 . . 2 2 4 1 1 . 5 6 2 6 11 Engine 11 | . . 1 . 1 3 . . 2 . 2 . . . 2 . . . . Core 6 | . . . . . 1 . . . 2 2 1 . . . . . . . Reactor 29 | . . . . . . . . . . . . 1 . 3 6 2 6 11 Propulsion 112 | 2 . 6 . 2 6 . 1 6 1 14 4 1 2 11 15 7 13 21 Treads 15 | 2 . 1 . . . . . . . 2 1 . . 1 2 2 2 2 Leg 65 | . . . . . . . . . . 8 3 1 2 10 13 5 11 12 Wheel 2 | . . . . . . . . . . . . . . . . . . 2 Hover 17 | . . . . . 2 . 1 5 1 4 . . . . . . . 4 Flight 13 | . . 5 . 2 4 . . 1 . . . . . . . . . 1 Utility 114 | . 2 1 . . 3 . 4 11 5 9 4 1 . 14 13 11 15 21 Device 65 | . 1 . . . 1 . 1 4 4 3 2 1 . 11 10 8 6 13 Storage 9 | . . 1 . . . . 2 . . 2 . . . . . 1 . 3 Processor 20 | . 1 . . . 2 . 1 6 1 2 . . . . . 1 5 1 Hackware 2 | . . . . . . . . . . . . . . . . . 1 1 Protection 18 | . . . . . . . . 1 . 2 2 . . 3 3 1 3 3 Artifact . | . . . . . . . . . . . . . . . . . . . Weapon 81 | . . 3 . . 12 . 1 3 2 6 2 . 3 4 12 2 14 17 Energy Gun 37 | . . 2 . . 7 . . 1 . 3 1 . 2 1 4 . 8 8 Energy Cannon 10 | . . 1 . . . . . . . 1 . . . 1 4 . 1 2 Ballistic Gun 14 | . . . . . 1 . . . . 1 1 . 1 1 4 1 3 1 Ballistic Cannon 2 | . . . . . . . . . . . . . . . . . . 2 Launcher 4 | . . . . . 3 . . . . . . . . . . . 1 . Special Weapon 3 | . . . . . 1 . . . . . . . . 1 . 1 . . Impact Weapon 3 | . . . . . . . . 1 1 1 . . . . . . . . Slashing Weapon 6 | . . . . . . . 1 1 1 . . . . . . . 1 2 Piercing Weapon 2 | . . . . . . . . . . . . . . . . . . 2 Special Melee Weapon . | . . . . . . . . . . . . . . . . . . . Unidentified Prototypes 34 | . . 2 . . 8 . 1 3 . 1 5 . . 1 . 2 10 1 Corrupted Parts 3 | . . . . . . . . . . . . . 3 . . . . . System Corruption 21 | . . . . . . . . . . . . . 21 . . . . . Parts Lost 170 | . . 3 . . 10 . 1 9 5 11 3 1 . 26 25 3 29 44 Power 22 | . . . . . 1 . . 2 1 . 1 . . 3 4 . 5 5 Propulsion 65 | . . 1 . . 8 . 1 4 2 6 1 1 . 9 10 . 10 12 Utility 44 | . . . . . . . . 3 2 3 1 . . 7 6 2 6 14 Weapon 39 | . . 2 . . 1 . . . . 2 . . . 7 5 1 8 13 Highest Loss Streak 25 | . . 3 . . 4 . 1 5 2 8 2 1 . 6 10 2 7 25 To Critical Strikes 3 | . . . . . . . . . . . . . . 1 . . . 2 Average Backups 12 | . . 4 8 6 7 7 8 8 8 9 17 19 19 18 17 17 15 7 Power . | . . . 1 1 . . . . . 1 1 1 1 . . 1 1 . Propulsion 1 | . . 1 3 1 . . . . . 1 1 1 1 . 3 . 2 1 Utility 5 | . . 1 2 2 4 5 6 3 4 3 7 8 8 9 6 8 6 . Weapon 3 | . . . 1 1 1 2 1 3 3 2 6 7 8 6 5 4 2 3 Tool/Special . | . . . . . . . . . . . . . . . . . . . Unused Backups 82 | . . 4 . . 9 4 7 7 . 5 6 1 . 6 3 10 15 5 Power 9 | . . . . . 2 . . . . 2 2 . . . . . 2 1 Propulsion 11 | . . 1 . . . . . . . 1 2 . . 2 1 . 4 . Utility 42 | . . 3 . . 4 3 7 6 . 2 . . . 2 1 6 8 . Weapon 18 | . . . . . 3 1 . . . . 2 1 . 2 1 4 1 3 Tool/Special 2 | . . . . . . . . 1 . . . . . . . . . 1 Average Slot Usage (%) 89 | . 40 84 88 87 81 81 88 76 90 90 99 98 100 96 91 98 92 70 Engine 1 | . . 9 11 9 6 . . 1 1 2 1 . . 2 . . . . Core 1 | . . . . . 2 9 9 2 3 2 3 1 . . . . . . Reactor 4 | . . . . . . . . . . . . 3 5 6 9 8 8 6 Treads 1 | . 28 4 . . . . . . . 1 . . . . 2 4 2 2 Leg 16 | . . . . . . . . . . 14 34 33 35 29 24 23 23 8 Hover 3 | . . . . . 2 . 7 14 26 11 . . . . . . . . Flight 6 | . . 36 44 51 38 36 35 10 . . . . . . . . . . Device 12 | . 10 11 11 9 2 . . 13 9 6 12 11 11 14 18 30 16 13 Storage 5 | . . 1 11 9 9 9 9 6 5 5 5 5 5 5 5 4 3 3 Processor 11 | . 1 9 . . 6 9 8 13 17 15 11 11 11 9 5 3 13 16 Protection 2 | . . . . . . . . 2 . 4 3 5 5 5 6 1 3 . Energy Gun 8 | . . 11 . . 7 18 17 2 . 4 11 11 11 9 9 4 9 6 Energy Cannon 2 | . . . 11 9 1 . . . . 2 5 5 5 . 5 8 3 3 Ballistic Gun 2 | . . . . . 2 . . . . . 5 5 5 9 2 3 2 . Impact Weapon 1 | . . . . . . . . 5 10 7 . . . . . . . . Slashing Weapon 1 | . . . . . . . . 1 11 4 . . . . . . . . Peak Build Rating 170 | 2 5 17 16 19 31 28 34 76 86 94 113 103 107 133 139 141 168 170 Average Rating 97 | 1 2 14 16 18 23 27 28 56 79 72 97 101 103 120 125 128 140 136 On Entrance 58 | . 2 5 16 16 19 28 27 31 73 75 83 100 103 107 105 92 139 83 Naked Turns . | . . . . . . . . . . . . . . . . . . . Heaviest Build 124 | . 1 17 17 19 22 16 21 33 39 81 89 93 93 109 114 118 124 101 Greatest Support 149 | 3 3 17 17 25 25 19 23 60 60 100 100 98 98 140 130 117 149 147 Greatest Overweight (x) 5 | . . . . . 1 . 1 1 2 2 1 1 . 1 1 1 1 5 Average Overweight (x) . | . . . . . . . . . . . . . . . . . . 1 Largest Inventory Capacity 20 | 5 5 8 8 8 8 8 10 10 10 20 20 20 20 20 20 20 20 15 Average Capacity 15 | 5 5 5 8 8 8 8 9 10 10 11 20 20 20 20 20 20 19 10 Most Carried 20 | . 5 8 8 8 8 8 10 10 10 17 20 20 20 20 20 20 20 15 Average Carried 14 | . 1 4 8 6 7 7 8 9 9 10 19 19 20 19 19 18 19 9 Final Capacity 20 | 5 5 8 8 8 8 8 10 10 10 20 20 20 20 20 20 20 5 5 Final Carried 20 | . 5 8 8 8 8 8 10 10 10 17 20 20 20 20 15 20 5 4 Class Distribution -------------------- 27% | Scavenger-Gunner 14% | Scavenger-Tank 12% | Scavenger-Skirmisher 12% | Mutant 10% | Commander-Skirmisher 9% | Sprinter 5% | Gladiator 3% | Commander-Gladiator Dominant Class ---------------- Mutant | -10/Materials Sprinter | -9/Materials Sprinter | -9/Mines Sprinter | -8/Materials Sprinter | -8/Storage Sprinter | -8/Recycling Mutant | -8/Scraptown Mutant | -6/Factory Gladiator | -5/Factory Commander-Gladiator | -5/Extension Commander-Skirmisher | -5/Cetus Commander-Skirmisher | -5/Archives Commander-Skirmisher | -5/Hub_04(d) Scavenger-Skirmisher | -4/Factory Scavenger-Tank | -4/Armory Scavenger-Gunner | -3/Research Scavenger-Gunner | -3/Quarantine Scavenger-Gunner | -2/Research Resources | -11 -10 -9 -9 -8 -8 -8 -8 -6 -5 -5 -5 -5 -5 -4 -4 -3 -3 -2 ----------- Run | Yrd Mat Mat Min Mat Sto Rec Scr Fac Fac Ext Cet Arc Hub Fac Arm Res Qua Res Matter Collected 7569 | 91 . 267 . 20 743 109 60 332 58 577 180 75 20 945 863 1150 1012 1067 Remotely . | . . . . . . . . . . . . . . . . . . . Salvage Created 13755 | . . 186 . 20 924 . 55 311 201 1028 123 62 586 2378 2474 709 2855 1843 Parts 550 | . . 10 . 1 51 . . 14 7 32 5 . 23 100 85 33 114 75 Haulers Intercepted 15 | . . 2 . . 4 . . 1 1 2 . . . 2 . 1 1 1 Recyclers Shooed 7 | . . 1 . . . . . . . 3 . . . . . . 3 . Parts Field Recycled . | . . . . . . . . . . . . . . . . . . . Retrieved Matter . | . . . . . . . . . . . . . . . . . . . Parts Self-Destructed . | . . . . . . . . . . . . . . . . . . . Prevented . | . . . . . . . . . . . . . . . . . . . Kills | -11 -10 -9 -9 -8 -8 -8 -8 -6 -5 -5 -5 -5 -5 -4 -4 -3 -3 -2 ------- Run | Yrd Mat Mat Min Mat Sto Rec Scr Fac Fac Ext Cet Arc Hub Fac Arm Res Qua Res Combat Hostiles Destroyed 184 | . . 2 . . 16 . 1 7 2 6 2 1 1 30 39 9 42 26 Melee 7 | . . . . . . . 1 . 1 . . . . . . . 4 1 Guns 80 | . . . . . 2 . . . . 4 . 1 . 23 27 2 16 5 Cannons 51 | . . . . . . . . . . . 1 . 1 1 8 6 20 14 AOE 33 | . . 2 . . 13 . . 7 . . . . . 5 . . . 6 Classes Destroyed 23 | . . 3 . 1 4 . 1 1 1 3 . . 1 1 4 . 3 . Worker 8 | . . . . . 2 . . . . . . . 2 2 . . 1 1 Builder 16 | . . . . . . . . 1 1 2 . . 2 6 . . 1 3 Tunneler 5 | . . . . . . . . . 1 . . . 1 . . 2 . 1 Hauler 15 | . . 2 . . 4 . . 1 1 2 . . . 2 . 1 1 1 Recycler 12 | . . 1 . . 1 . . . . 3 . . 1 1 . . 1 4 Mechanic 2 | . . . . . 1 . . . . . . . . . 1 . . . Operator 2 | . . . . 1 . . . . . . . . . . . 1 . . Watcher 7 | . . . . . . . . . . 1 . . 1 2 . . 1 2 Swarmer 30 | . . 2 . . 8 . . 6 1 . . . . . 6 1 4 2 Saboteur 2 | . . . . . . . . . . . . . . . 1 . 1 . Grunt 66 | . . . . . 5 . . 1 . 3 . . . 17 8 5 18 9 Brawler 7 | . . . . . . . . . . . . . . 3 . . 2 2 Duelist 11 | . . . . . . . . . . . . . . . 7 . 3 1 Protector 3 | . . . . . . . . . . . . . . 2 . . . 1 Researcher 3 | . . . . . . . . . . . . . . . . . 3 . Sentry 17 | . . . . . 3 . . . 1 1 . 1 . 4 6 . . 1 Demolisher 1 | . . . . . . . . . . . . . . . 1 . . . Specialist 4 | . . . . . . . . . . . . . . . 4 . . . Hunter 12 | . . . . . . . . . . 1 . . 1 2 1 1 3 3 Programmer 26 | . . . . . . . . . . 1 . . . 2 5 2 9 7 Q-Series 1 | . . . . . . . . . . . . . . . . . 1 . Cetus Guard 2 | . . . . . . . . . . . 2 . . . . . . . Enhanced Grunt 1 | . . . . . . . . . . . . . 1 . . . . . Alpha 7 1 | . . . . . . . . . . . . . . . . . 1 . Guru 1 | . . . . . . . 1 . . . . . . . . . . . Savage 1 | . . . . . . . . . . . . . 1 . . . . . Guerrilla 2 | . . . . . . . . . . . . . 2 . . . . . Best Kill Streak 19 | . . 3 . 1 13 . 1 5 1 3 2 1 8 11 8 3 13 19 Combat Bots Only 12 | . . 2 . . 9 . 1 4 1 2 2 1 1 6 8 3 12 11 Max Kills in Single Turn 14 | . . 2 . 1 3 . 1 3 1 1 1 1 10 6 2 1 2 14 Gunslinging 1 | . . . . . . . . . . . . . . 1 1 . . . Exploded 6 | . . 2 . . 2 . . 3 . . . . . 2 . . . 6 Melee 1 | . . . . . . . 1 . 1 . . . . . . . 1 1 Uniques/NPCs Destroyed . | . . . . . . . . . . . . . . . . . . . Combat | -11 -10 -9 -9 -8 -8 -8 -8 -6 -5 -5 -5 -5 -5 -4 -4 -3 -3 -2 -------- Run | Yrd Mat Mat Min Mat Sto Rec Scr Fac Fac Ext Cet Arc Hub Fac Arm Res Qua Res Hostile Shots Fired 2319 | . 14 23 . 2 77 . 12 158 56 76 40 9 13 312 301 76 543 607 Missed 736 | . 4 8 . 2 28 . 5 74 24 23 10 2 3 107 74 22 156 194 Deflected 36 | . . . . . . . . . . . . . . . . . . 36 Hits 1583 | . 10 15 . . 49 . 7 84 32 53 30 7 10 205 227 54 387 413 Melee 51 | . . . . . . . . . . . . . . . 24 . 13 14 Projectile 1532 | . 10 15 . . 49 . 7 84 32 53 30 7 10 205 203 54 374 399 AOE 19 | . . . . . . . . 1 . . . . . . 2 . 14 2 Critical Strikes 102 | . . 1 . . 1 . 1 2 . . 3 . 1 14 10 3 36 30 Actively Blocked 1 | . . . . . . . . . . . . . . . . . . 1 Part Disruptions 12 | . . . . . . . . . 1 . . . . . 6 . 2 3 Actively Blocked 2 | . . . . . . . . . . . . . . . . . 2 . Damage Taken 34963 | . 114 216 . . 719 . 79 1494 807 1218 854 170 392 4719 4933 1100 8542 9606 Core 3821 | . 32 67 . . 145 . 22 376 122 223 57 70 40 208 219 52 738 1450 Absorbed by Shields 953 | . . . . . . . . . . 167 65 . . 132 . . . 589 Reduced by Siege Mode 280 | . . . . . . . . . . . . . . . 280 . . . Redirected to Shielding 226 | . . . . . . . . . . . . . . . 8 . . 218 Regen/Repaired (Parts) 817 | . . . . . 8 . . . 82 . . . . 94 188 . 308 137 Core Remaining (%) 67 | 100 87 . 83 . . . 69 55 . . . . 48 . 62 . 33 . Volleys Fired 579 | . . 16 . 2 59 7 2 6 . 8 18 6 4 86 103 32 155 75 Largest 4 | . . 2 . 1 2 2 1 1 . 4 4 4 4 4 4 4 4 4 Hottest 680 | . . 90 . 56 119 111 61 61 . 262 222 229 229 587 455 485 680 376 Shots Fired 1554 | . . 24 . 2 84 10 2 6 . 25 44 24 11 263 333 98 430 198 Gun 1126 | . . 24 . . 58 10 2 2 . 18 32 18 8 249 253 48 312 92 Cannon 396 | . . . . 2 6 . . . . 7 12 6 3 11 80 49 115 105 Launcher 27 | . . . . . 20 . . 4 . . . . . 2 . . . 1 Special 5 | . . . . . . . . . . . . . . 1 . 1 3 . Kinetic 406 | . . . . . 25 . . . . 3 13 6 3 133 77 26 55 65 Thermal 989 | . . . . . 15 7 2 2 . 22 31 18 8 127 216 71 347 123 Explosive 5 | . . . . . 5 . . . . . . . . . . . . . Electromagnetic 149 | . . 24 . 2 39 3 . 4 . . . . . 2 40 . 25 10 Robot Hit Streak 40 | . . 4 . . 7 . . 3 . 5 7 6 4 10 15 9 40 8 Robot Miss Streak 6 | . . 3 . 1 4 . . . . 2 3 3 1 3 5 3 3 6 Penetration Max 2 | . . . . . . . . . . . 1 . . 1 1 . 2 . Secondary Targets 15 | . . . . . . . . . . . . . . 5 6 . 4 . Max Gunslinging Chain 1 | . . . . . . . . . . . . . . 1 1 . 1 . Shots Hit Robots 914 | . . 12 . . 26 . 1 5 15 40 24 15 5 138 218 45 259 111 Core Hits 478 | . 1 7 . 1 35 . 1 14 2 11 8 5 21 98 86 22 107 59 Critical Kills 13 | . . . . . . . . . . . . . . 8 1 1 3 . Critical Parts Destroyed 18 | . . . . . . . . 1 3 3 . 2 . 7 . 1 1 . Critical Strikes 48 | . . . . . . . . 1 3 4 2 2 . 16 5 2 9 4 Burn 11 | . . . . . . . . . . 1 2 . . 1 2 . 5 . Meltdown 2 | . . . . . . . . . . . . . . . . 1 1 . Destroy 23 | . . . . . . . . . . . . 2 . 15 2 1 3 . Blast 4 | . . . . . . . . . . . . . . . . . . 4 Corrupt 1 | . . . . . . . . . . . . . . . 1 . . . Smash 7 | . . . . . . . . 1 3 3 . . . . . . . . Melee Attacks 142 | . . . . . . . 2 33 31 55 . . . . . . 12 9 Impact 61 | . . . . . . . . 24 20 17 . . . . . . . . Slashing 81 | . . . . . . . 2 9 11 38 . . . . . . 12 9 Piercing . | . . . . . . . . . . . . . . . . . . . Sneak Attacks 26 | . . . . . . . . 2 6 13 . . . . . . 5 . Combat Hostiles 6 | . . . . . . . . . . 1 . . . . . . 5 . Follow-up Attacks 14 | . . . . . . . . . 6 8 . . . . . . . . Damage Inflicted 52725 | . 1 273 . 30 1472 . 42 900 1005 2239 707 487 1461 7713 6731 1719 9157 18788 Guns 18077 | . . 190 . . 310 . . . . 176 484 423 100 4421 4728 661 5015 1569 Cannons 9604 | . . . . 30 61 . . . . 33 223 64 32 291 2003 1058 3073 2736 Explosions 20399 | . . 83 . . 1101 . . 591 . . . . 1329 2957 . . 190 14148 Melee 4549 | . . . . . . . 42 309 1005 2030 . . . . . . 837 326 Ramming 96 | . 1 . . . . . . . . . . . . 44 . . 42 9 Kinetic 6987 | . . . . . 65 . . . . 46 237 136 19 2344 1249 242 781 1868 Thermal 34323 | . . 83 . . 351 . . 163 . 163 470 351 113 2953 4795 1477 6917 16487 Explosive 2685 | . . . . . 366 . . . . . . . . 2173 . . 146 . Electromagnetic 4085 | . . 190 . 30 690 . . 428 . . . . 1329 199 687 . 434 98 Impact 1815 | . . . . . . . . 309 667 839 . . . . . . . . Slashing 2734 | . . . . . . . 42 . 338 1191 . . . . . . 837 326 Piercing . | . . . . . . . . . . . . . . . . . . . Highest Corruption 40 | . . . . . . . . 2 . 1 1 1 23 1 6 1 40 24 Average Corruption 6 | . . . . . . . . 2 . 1 1 1 1 1 3 1 12 15 Corruption Purged 1 | . . . . . . . . . . . . . . . . 1 . . Corruption Blocked . | . . . . . . . . . . . . . . . . . . . Effects 164 | . . . . . . . . 5 . 2 3 3 3 1 24 4 63 56 Message Errors 34 | . . . . . . . . 1 . 1 . 2 2 . 4 1 12 11 Matter Fused 33 | . . . . . . . . . . . . 1 . . 5 . 15 12 Heat Flow Errors 18 | . . . . . . . . 1 . . 1 . 1 . 3 2 5 5 Energy Discharges 19 | . . . . . . . . 2 . . . . . 1 3 1 5 7 Parts Rejected 8 | . . . . . . . . 1 . . . . . . 1 . 4 2 Data Loss (minor) 13 | . . . . . . . . . . . . . . . 4 . 4 5 Data Loss (major) 8 | . . . . . . . . . . . 1 . . . 2 . 4 1 Misfires 6 | . . . . . . . . . . 1 1 . . . 2 . 1 1 Alerts 3 | . . . . . . . . . . . . . . . . . 3 . Misdirections 5 | . . . . . . . . . . . . . . . . . 1 4 Weapon Failures 17 | . . . . . . . . . . . . . . . . . 9 8 Overload Shots 80 | . . . . . . . . . . . 1 . . 18 12 4 45 . Effects 5 | . . . . . . . . . . . . . . . . 1 4 . Energy Bleed 3 | . . . . . . . . . . . . . . . . 1 2 . Heat Surge 1 | . . . . . . . . . . . . . . . . . 1 . Short Circuit 1 | . . . . . . . . . . . . . . . . . 1 . Overflow Damage 4644 | . . . . . 8 . . 149 397 799 . . 94 248 40 3 228 2678 Projectiles 153 | . . . . . . . . . . . . . . . 40 3 50 60 Explosions 2984 | . . . . . 8 . . 2 . . . . 94 248 . . 14 2618 Melee 1507 | . . . . . . . . 147 397 799 . . . . . . 164 . Knockbacks 8 | . . . . . . . . . . 1 . . . . . . . 7 Impact 1 | . . . . . . . . . . 1 . . . . . . . . Kinetic 7 | . . . . . . . . . . . . . . . . . . 7 Secondary . | . . . . . . . . . . . . . . . . . . . Self-Inflicted Damage 1265 | . . 33 . . 69 . . . . . . . 103 152 . . . 908 Shots 8 | . . 1 . . 2 . . . . . . . 1 3 . . . 1 Rammed 10 | . 1 . . . . . . . . . . . . . . . 4 5 Targets Rammed 21 | . 1 . . . . . . . . . . . . 5 . . 9 6 Kicked 10 | . . . . . . . . . . . . . . 5 . . 4 1 Crushed 1 | . . . . . . . . . . . . . . . . . 1 . Highest Temperature 734 | . . 196 . 22 178 221 40 200 . 287 302 288 120 480 734 349 399 386 Average Temperature 98 | . . 81 . 10 46 103 24 50 . 92 63 128 59 119 146 88 86 94 Received Heat Transfer 5412 | . 63 54 . . 225 . 12 483 18 207 112 27 9 913 646 123 1281 1239 Effects 24 | . . . . . . . . . . . . . . 4 15 . 4 1 Shutdowns 6 | . . . . . . . . . . . . . . 1 4 . 1 . Energy Bleed 4 | . . . . . . . . . . . . . . 2 1 . 1 . Interference 5 | . . . . . . . . . . . . . . . 3 . 1 1 Matter Decay 1 | . . . . . . . . . . . . . . . 1 . . . Damage (minor) 2 | . . . . . . . . . . . . . . 1 . . 1 . Damage (major) 6 | . . . . . . . . . . . . . . . 6 . . . Siege Activations 3 | . . . . . . . . . . . . . . . 3 . . . Total Turns 48 | . . . . . . . . . . . . . . . 48 . . . Longest Duration 22 | . . . . . . . . . . . . . . . 22 . . . Martial Activations . | . . . . . . . . . . . . . . . . . . . Shielding Activations 3 | . . . . . . . . . . . . . . . . . . 3 Total Turns 111 | . . . . . . . . . . . . . . . . . . 111 Longest Duration 45 | . . . . . . . . . . . . . . . . . . 45 Robots Disrupted 2 | . . . . . . . . . . . . . . . 2 . . . Combat Hostiles 2 | . . . . . . . . . . . . . . . 2 . . . Robots Corrupted 10 | . . . . . 1 . . . 2 3 . . 1 . 1 . 2 . Combat Hostiles 6 | . . . . . 1 . . . 1 2 . . . . 1 . 1 . Parts Fried 33 | . . 1 . . 2 . . 4 1 7 . . 7 . 4 . 7 . Impact Corruptions 22 | . . . . . . . . 4 8 9 . . . . . . 1 . Robots Melted 7 | . . . . . . . . . . . 1 . . 1 3 1 1 . Combat Hostiles 7 | . . . . . . . . . . . 1 . . 1 3 1 1 . Parts Melted 38 | . . . . . . . . . . . . 1 2 3 13 4 12 3 Heat Transferred 21828 | . . 100 . . 533 . . 150 . 346 987 522 187 3099 4687 1459 7220 2538 Parts Sabotaged . | . . . . . . . . . . . . . . . . . . . Parts Stolen . | . . . . . . . . . . . . . . . . . . . Parts Stripped . | . . . . . . . . . . . . . . . . . . . Power Chain Reactions 11 | . . 1 . . 6 . . 1 . . . . . 2 . . 1 . Alert | -11 -10 -9 -9 -8 -8 -8 -8 -6 -5 -5 -5 -5 -5 -4 -4 -3 -3 -2 ------- Run | Yrd Mat Mat Min Mat Sto Rec Scr Fac Fac Ext Cet Arc Hub Fac Arm Res Qua Res Maximum Alert Level 5 | . . . . . 2 1 . 2 3 3 3 2 3 5 4 3 4 5 Low Security (%) 11 | 100 100 100 100 100 30 . . 53 47 . . . 67 . . . . . Level 1 6 | . . . . . 6 100 . 26 20 7 . 17 10 6 . . . . Level 2 31 | . . . . . 62 . . 20 23 46 46 82 . 29 11 85 21 6 Level 3 40 | . . . . . . . . . 7 46 53 . 22 31 74 14 71 53 Level 4 8 | . . . . . . . . . . . . . . 24 13 . 7 27 Level 5 2 | . . . . . . . . . . . . . . 7 . . . 12 High Security . | . . . . . . . . . . . . . . . . . . . Max Security . | . . . . . . . . . . . . . . . . . . . Peak Influence 1879 | . 30 98 36 25 637 316 . 547 759 986 859 463 1052 1792 1199 766 1127 1879 Initial 854 | . . 8 36 13 9 242 . . 158 367 524 260 137 461 854 606 428 591 Average 710 | . 1 30 36 18 362 281 . 203 343 678 704 416 339 905 866 584 890 1119 Influence Increases 14346 | . 30 190 . 19 932 124 . 866 857 1253 639 253 1105 2479 1145 554 1557 2343 Destroy 0b10 Robot/C 5620 | . . 40 . . 320 . . 160 340 520 260 80 240 820 800 220 960 860 Destroy 0b10 Robot/NC 460 | . . 15 . 5 50 . . 10 40 65 10 . 55 75 5 20 35 75 Destroy Leader 956 | . . 14 . . 78 . . 22 62 64 20 . 42 188 150 32 136 148 Allied During Kill 1271 | . . . . . . . . 5 27 301 290 80 191 106 5 10 33 223 Successful Hack 352 | . . 28 . 14 10 34 . 46 14 45 . . 8 74 9 30 5 35 Select Force Hacks 110 | . . . . . . 90 . 20 . . . . . . . . . . Disable Machine 1410 | . . 30 . . 75 . . 105 75 . 15 75 240 510 60 30 165 30 Anti-Garrison Action 500 | . . . . . 200 . . . . . . . . 150 . 150 . . Destroy Structure 2437 | . . 3 . . 49 . . 48 104 258 44 18 314 466 56 62 178 837 Partial Spotted 150 | . . 30 . . 75 . . 15 15 . . . . . . . . 15 Lose Combat Pursuer 1080 | . 30 30 . . 75 . . 435 180 . . . 15 90 60 . 45 120 Influence Decreases 12514 | . 10 115 59 33 332 450 296 541 431 1068 924 511 556 1677 1732 949 1268 1562 Entered New Map 5109 | . . 12 59 23 13 380 296 . 167 384 412 391 256 481 890 551 334 460 Time Decay 4439 | . 10 73 . 10 243 70 . 291 214 514 362 110 120 526 422 368 604 502 Search Patrol Dispatched 150 | . . . . . . . . 150 . . . . . . . . . . Lost Part 1616 | . . 30 . . 76 . . 40 50 110 30 10 . 260 250 30 290 440 Lost Ally 750 | . . . . . . . . 60 . 60 120 . 180 110 20 . 40 160 Purge Threat 450 | . . . . . . . . . . . . . . 300 150 . . . Squads Dispatched 95 | . 1 . . . 3 . . 14 11 2 1 . 2 15 10 6 15 15 Investigation 36 | . . . . . 2 . . 12 5 1 1 . . 3 3 4 2 3 Extermination 12 | . . . . . . . . 1 . . . . . 2 2 . 4 3 Reinforcement 23 | . 1 . . . . . . 1 3 1 . . 2 5 1 2 5 2 Assault 19 | . . . . . . . . . . . . . . 4 4 . 4 7 Garrison 5 | . . . . . 1 . . . 3 . . . . 1 . . . . Intercept . | . . . . . . . . . . . . . . . . . . . Searches Triggered 1 | . . . . . . . . 1 . . . . . . . . . . Construction Impeded 5 | . . . . . . . . . . 1 . . 1 3 . . . . Haulers Reinforced 1 | . . . . . . . . . . . . . . 1 . . . . Active Scanning Responses . | . . . . . . . . . . . . . . . . . . . Cargo Convoy Interrupts . | . . . . . . . . . . . . . . . . . . . Stealth | -11 -10 -9 -9 -8 -8 -8 -8 -6 -5 -5 -5 -5 -5 -4 -4 -3 -3 -2 --------- Run | Yrd Mat Mat Min Mat Sto Rec Scr Fac Fac Ext Cet Arc Hub Fac Arm Res Qua Res Distress Signals 33 | . 1 . . . 5 . . . 1 3 2 . 5 4 2 7 . 3 Communications Jammed 98 | . . . . . . . . . . . . . . . . . 98 . Distress Signals 95 | . . . . . . . . . . . . . . . . . 95 . Times Spotted 459 | . 6 11 . 7 31 . 8 40 17 31 15 9 10 62 52 18 74 68 Peak Tracking Total 12 | . 5 6 . 7 7 . 6 12 10 6 5 2 6 9 8 4 7 12 Tactical Retreats 37 | . 1 2 . . 3 . . 10 5 . . . 1 4 4 . 3 4 Traps | -11 -10 -9 -9 -8 -8 -8 -8 -6 -5 -5 -5 -5 -5 -4 -4 -3 -3 -2 ------- Run | Yrd Mat Mat Min Mat Sto Rec Scr Fac Fac Ext Cet Arc Hub Fac Arm Res Qua Res Traps Triggered 16 | . . . . . 1 . . 4 2 3 . . 1 1 2 . 2 . Indirectly 3 | . . . . . . . . 2 . . . . 1 . . . . . Trap Hack Attempts . | . . . . . . . . . . . . . . . . . . . Triggered . | . . . . . . . . . . . . . . . . . . . Disarmed . | . . . . . . . . . . . . . . . . . . . Reprogrammed 4 | . . . . . 4 . . . . . . . . . . . . . Reused . | . . . . . . . . . . . . . . . . . . . Traps Extracted . | . . . . . . . . . . . . . . . . . . . Installed . | . . . . . . . . . . . . . . . . . . . Triggered . | . . . . . . . . . . . . . . . . . . . Most Traps Carried 1 | . . . . . . . 1 1 . . . . . . . . . . Machines | -11 -10 -9 -9 -8 -8 -8 -8 -6 -5 -5 -5 -5 -5 -4 -4 -3 -3 -2 ---------- Run | Yrd Mat Mat Min Mat Sto Rec Scr Fac Fac Ext Cet Arc Hub Fac Arm Res Qua Res Machines Disabled 102 | . . 2 . . 5 . . 7 5 3 3 5 16 35 4 3 12 2 Max in Single Turn 16 | . . 1 . . 1 . . 4 . 1 1 2 16 7 1 2 1 1 Garrison Access 5 | . . . . . 1 . . 1 . . . . . 1 . 1 . 1 Network Hub 1 | . . . . . . . . . . . . . 1 . . . . . Machines Repaired . | . . . . . . . . . . . . . . . . . . . Machines Dismantled 1 | . . . . . 1 . . . . . . . . . . . . . Machines Sabotaged . | . . . . . . . . . . . . . . . . . . . Overloaded Fab Kills . | . . . . . . . . . . . . . . . . . . . Hacking | -11 -10 -9 -9 -8 -8 -8 -8 -6 -5 -5 -5 -5 -5 -4 -4 -3 -3 -2 --------- Run | Yrd Mat Mat Min Mat Sto Rec Scr Fac Fac Ext Cet Arc Hub Fac Arm Res Qua Res Machines Accessed 106 | . . 4 . 3 8 9 5 18 8 12 2 . 6 11 6 4 5 5 Terminals 64 | . . 4 . 3 4 6 . 6 3 12 2 . 6 6 4 2 4 2 Fabricators 4 | . . . . . . . . 2 1 . . . . . . . . 1 Repair Stations 6 | . . . . . 2 . . . 1 . . . . 1 1 . 1 . Recycling Units 20 | . . . . . 1 3 . 7 3 . . . . 2 1 1 . 2 Scanalyzers 2 | . . . . . . . . 1 . . . . . 1 . . . . Garrison Access 5 | . . . . . 1 . . 2 . . . . . 1 . 1 . . Total Hacks 299 | . . 15 . 10 18 29 28 43 18 22 4 . 13 39 16 11 12 21 Successful 158 | . . 8 . 6 10 23 28 18 7 13 1 . 4 21 6 3 4 6 Failed 141 | . . 7 . 4 8 6 . 25 11 9 3 . 9 18 10 8 8 15 Catastrophic 32 | . . 1 . 1 1 2 . 6 3 2 . . 1 4 3 2 2 4 Database Lockouts . | . . . . . . . . . . . . . . . . . . . Manual 135 | . . 13 . 7 5 19 . 27 13 5 2 . . 22 7 2 4 9 Terminals 188 | . . 15 . 10 7 24 . 16 6 22 4 . 13 29 14 8 11 9 Fabricators 18 | . . . . . . . . 8 3 . . . . . . . . 7 Repair Stations 11 | . . . . . 4 . . . 3 . . . . 2 1 . 1 . Recycling Units 37 | . . . . . 3 5 . 12 6 . . . . 4 1 1 . 5 Scanalyzers 6 | . . . . . . . . 4 . . . . . 2 . . . . Garrison Access 11 | . . . . . 4 . . 3 . . . . . 2 . 2 . . Terminal Hacks 89 | . . 4 . 3 5 12 28 3 1 10 1 . 4 10 3 2 2 1 Record 24 | . . . . . . 1 21 . . . 1 . . . . . 1 . Part Schematic 1 | . . . . . . . . . . 1 . . . . . . . . Robot Analysis 5 | . . . . . . . 5 . . . . . . . . . . . Prototype ID Bank 9 | . . 2 . . . 7 . . . . . . . . . . . . Open Door 10 | . . . . . 1 . 1 . 1 7 . . . . . . . . Branch Access Points 2 | . . . . . . . . . . . . . . 1 . 1 . . Emergency Access Points 10 | . . . . 1 . . . 1 . . . . 2 2 2 1 1 . Terminal Index 1 | . . . . . . . . . . . . . . 1 . . . . Alert Level 2 | . . . . . . . . . . . . . 1 1 . . . . Unreport Threat 3 | . . . . . . . . . . . . . . 2 1 . . . Locate Traps 5 | . . . . . 2 . . 1 . 2 . . . . . . . . Reprogram Traps 1 | . . . . . 1 . . . . . . . . . . . . . Dispatch Records 1 | . . . . . . . . . . . . . 1 . . . . . Recall Reinforcements 1 | . . . . . . . . . . . . . . 1 . . . . Hauler Manifests 3 | . . 1 . . 1 1 . . . . . . . . . . . . Registered Components 4 | . . . . 1 . 1 . . . . . . . 1 . . . 1 Zone Layout 6 | . . 1 . 1 . 2 . 1 . . . . . 1 . . . . Proto ID Catalog 1 | . . . . . . . 1 . . . . . . . . . . . Fabricator Hacks 3 | . . . . . . . . 1 . . . . . . . . . 2 Network Status 2 | . . . . . . . . 1 . . . . . . . . . 1 Build 1 | . . . . . . . . . . . . . . . . . . 1 Repair Station Hacks 2 | . . . . . . . . . . . . . . 2 . . . . Scan Component 1 | . . . . . . . . . . . . . . 1 . . . . Repair 1 | . . . . . . . . . . . . . . 1 . . . . Recycling Unit Hacks 3 | . . . . . 1 2 . . . . . . . . . . . . Retrieve Components 3 | . . . . . 1 2 . . . . . . . . . . . . Scanalyzer 4 | . . . . . . . . 3 . . . . . 1 . . . . Insert Component 2 | . . . . . . . . 1 . . . . . 1 . . . . Analyze 2 | . . . . . . . . 2 . . . . . . . . . . Garrison Access Hacks 1 | . . . . . . . . 1 . . . . . . . . . . Seal Access 1 | . . . . . . . . 1 . . . . . . . . . . Unauthorized Hacks 56 | . . 4 . 3 4 9 . 10 6 3 . . . 8 3 1 2 3 Terminals 28 | . . 4 . 3 . 6 . 2 2 3 . . . 6 1 . 1 . Track 2 | . . 1 . . . . . . . 1 . . . . . . . . Assimilate 4 | . . 1 . . . . . 1 1 . . . . 1 . . . . Botnet 18 | . . 1 . 2 . 6 . 1 1 1 . . . 4 1 . 1 . Disrupt 3 | . . 1 . . . . . . . 1 . . . 1 . . . . Operators 1 | . . . . 1 . . . . . . . . . . . . . . Fabricators 3 | . . . . . . . . 2 . . . . . . . . . 1 Fabnet 2 | . . . . . . . . 1 . . . . . . . . . 1 Download 1 | . . . . . . . . 1 . . . . . . . . . . Repair Stations 4 | . . . . . 1 . . . 1 . . . . . 1 . 1 . Patch 4 | . . . . . 1 . . . 1 . . . . . 1 . 1 . Recycling Units 20 | . . . . . 2 3 . 6 3 . . . . 2 1 1 . 2 Monitor 1 | . . . . . 1 . . . . . . . . . . . . . Recyclers 1 | . . . . . 1 . . . . . . . . . . . . . Tunnel 3 | . . . . . . 3 . . . . . . . . . . . . Fedlink 7 | . . . . . . . . 5 2 . . . . . . . . . Scrapoids 3 | . . . . . . . . 1 . . . . . 1 . . . 1 Scraphulk 5 | . . . . . . . . . 1 . . . . 1 1 1 . 1 Scanalyzers . | . . . . . . . . . . . . . . . . . . . Garrison Access 1 | . . . . . 1 . . . . . . . . . . . . . Jam 1 | . . . . . 1 . . . . . . . . . . . . . Data Cores Recovered 3 | . . . . 1 . . . . . 1 . . . . . 1 . . Used 1 | . . . . . . . . . . 1 . . . . . . . . Hacking Detections 72 | . . 4 . 3 6 6 . 13 4 6 3 . 6 9 4 3 3 2 Full Trace Events 17 | . . . . . . 6 . 5 1 . 1 . . 1 . 1 1 1 Feedback Events 1 | . . . . . . . . . . . . . . 1 . . . . Corruption 1 | . . . . . . . . . . . . . . 1 . . . . Feedback Blocked . | . . . . . . . . . . . . . . . . . . . Robot Schematics Acquired 2 | . . . . . . . . . . . . . . . . . 2 . Robots Built 3 | . . . . . . . . . . . . . . . . . . 3 Authchips . | . . . . . . . . . . . . . . . . . . . Time 204 | . . . . . . . . . . . . . . . . . . 204 Total Robot Build Rating 24 | . . . . . . . . . . . . . . . . . . 24 Part Schematics Acquired 10 | . . . . . . . . 2 . 1 . . . . . . 7 . Parts Built . | . . . . . . . . . . . . . . . . . . . Authchips . | . . . . . . . . . . . . . . . . . . . Time . | . . . . . . . . . . . . . . . . . . . Total Part Build Rating . | . . . . . . . . . . . . . . . . . . . Parts Repaired 1 | . . . . . . . . . . . . . . 1 . . . . Time 38 | . . . . . . . . . . . . . . 38 . . . . Parts Recycled . | . . . . . . . . . . . . . . . . . . . Recycled Matter . | . . . . . . . . . . . . . . . . . . . Retrieved Matter . | . . . . . . . . . . . . . . . . . . . Retrieved Components 10 | . . . . . 1 9 . . . . . . . . . . . . Parts Scanalyzed 2 | . . . . . . . . 1 . . . . . 1 . . . . Part Schematics Acquired 1 | . . . . . . . . 1 . . . . . . . . . . Parts Damaged . | . . . . . . . . . . . . . . . . . . . Bothacking | -11 -10 -9 -9 -8 -8 -8 -8 -6 -5 -5 -5 -5 -5 -4 -4 -3 -3 -2 ------------ Run | Yrd Mat Mat Min Mat Sto Rec Scr Fac Fac Ext Cet Arc Hub Fac Arm Res Qua Res Used RIF Installer . | . . . . . . . . . . . . . . . . . . . Robots Hacked 4 | . . . . . . . . . . 2 . . 2 . . . . . Non-combat . | . . . . . . . . . . . . . . . . . . . Combat 4 | . . . . . . . . . . 2 . . 2 . . . . . Robot Hacks Applied . | . . . . . . . . . . . . . . . . . . . Relay Couplers Released 10 | . . . . . . . . . . . . . . 4 . 3 . 3 Machine Destruction 6 | . . . . . . . . . . . . . . . . 3 . 3 Programmers 4 | . . . . . . . . . . . . . . 4 . . . . Fabnet Peak Effective % 3 | . . . . . . . . . 3 3 3 3 3 1 1 . . . Autooverrided 4 | . . . . . . . . . . 2 . . 2 . . . . . Robots Rewired 15 | . . . . . . . . . . 15 . . . . . . . . Allies Hacked 7 | . . . . . . . . . . . . . . 2 . . . 5 Hacks Repelled . | . . . . . . . . . . . . . . . . . . . Allies | -11 -10 -9 -9 -8 -8 -8 -8 -6 -5 -5 -5 -5 -5 -4 -4 -3 -3 -2 -------- Run | Yrd Mat Mat Min Mat Sto Rec Scr Fac Fac Ext Cet Arc Hub Fac Arm Res Qua Res Total Allies 57 | . . . . . . . . 6 1 24 5 . 2 7 1 1 1 9 Largest Group 17 | . . . . . . . . 5 1 17 17 15 16 5 1 1 1 5 Highest-Rated Group 929 | . . . . . . . . 140 123 722 929 770 794 264 123 139 139 395 Highest-Rated Ally 159 | . . . . . . . . 28 123 159 153 96 142 123 123 139 139 139 Total Orders . | . . . . . . . . . . . . . . . . . . . Ally Attacks 587 | . . . . . . . . 15 17 116 108 23 58 83 8 9 20 130 Total Damage 19529 | . . . . . . . . 220 2276 4020 2614 717 2349 1978 286 543 1028 3498 Kills 127 | . . . . . . . . 1 20 30 14 3 18 13 1 2 5 20 Allies Corrupted 6 | . . . . . . . . . . . . . 4 1 . . . 1 Allies Melted . | . . . . . . . . . . . . . . . . . . . Intel | -11 -10 -9 -9 -8 -8 -8 -8 -6 -5 -5 -5 -5 -5 -4 -4 -3 -3 -2 ------- Run | Yrd Mat Mat Min Mat Sto Rec Scr Fac Fac Ext Cet Arc Hub Fac Arm Res Qua Res Active Infowar (turns) 7286 | . 68 179 8 35 3 . . 436 395 1217 828 233 256 756 . 779 1716 377 Optics 1418 | . 3 155 . . . . . 85 . . . . . . . . 853 322 Terrain 4263 | . . . . . . . . 351 327 667 828 233 256 756 . 529 70 246 Structural 438 | . 68 143 8 35 3 . . . . . . . . . . . 181 . Traps 114 | . . . . . . . . . 114 . . . . . . . . . Seismic 472 | . . . . . . . . 164 . . . . . . . 308 . . Triangulation 860 | . . . . . . . . . 253 607 . . . . . . . . Jamming 1741 | . . . . . . . . . . . . . . . . 232 1509 . ECM 14 | . . . . . . . . . . . . . . . . . . 14 Robot Analysis Total 5 | . . . . . . . 5 . . . . . . . . . . . Derelict Logs Recovered . | . . . . . . . . . . . . . . . . . . . Drone Launches . | . . . . . . . . . . . . . . . . . . . Drone Recoveries . | . . . . . . . . . . . . . . . . . . . Exploration | -11 -10 -9 -9 -8 -8 -8 -8 -6 -5 -5 -5 -5 -5 -4 -4 -3 -3 -2 ------------- Run | Yrd Mat Mat Min Mat Sto Rec Scr Fac Fac Ext Cet Arc Hub Fac Arm Res Qua Res Turns Passed 12597 | 18 84 179 8 39 578 142 984 741 451 1406 828 233 256 1468 1020 855 1953 1354 Spaces Moved 10285 | 30 149 233 30 105 780 426 1420 863 531 1147 515 122 197 835 428 553 1033 888 Core 435 | 30 149 25 . . . . . 5 . . . . . . . . 65 161 Treads 22 | . . . . . . . . . . . . . . . . . . 22 Legs 4297 | . . . . . . . . . . 460 515 122 197 835 428 553 968 219 Wheels 459 | . . . . . . . . . . . . . . . . . . 459 Hover 1892 | . . . . . . . . 674 531 687 . . . . . . . . Flight 3180 | . . 208 30 105 780 426 1420 184 . . . . . . . . . 27 Fastest Speed 22 | 50 50 26 27 22 22 28 28 32 49 37 120 120 120 120 112 114 50 40 Average Speed 84 | 50 50 29 27 25 30 28 66 64 61 86 121 131 120 122 119 119 115 101 Slowest Speed 220 | 50 50 50 27 27 103 28 103 120 220 220 190 186 120 190 190 186 185 190 Overloaded Moves . | . . . . . . . . . . . . . . . . . . . Propulsion Burnouts . | . . . . . . . . . . . . . . . . . . . Robots Hopped 13 | . . 4 . 1 2 6 . . . . . . . . . . . . Potential Cave-ins 3 | . . . . . . . . . . . . . . . 3 . . . Cave-ins Triggered . | . . . . . . . . . . . . . . . . . . . Teleports 1 | . . . . . . . . . . . . . . . . . 1 . Exploration Rate (%) 44 | 3 33 33 8 15 79 77 84 33 13 94 88 83 30 23 22 17 87 22 Regions Visited 18 Branch Regions 10 Pre-discovered Areas 8 | . . . . . . 3 4 1 . . . . . . . . . . Known Exits Taken 12 | . . . . . 1 1 1 1 1 1 1 1 1 1 . 1 1 . Unknown Exits Taken 6 | 1 1 1 1 1 . . . . . . . . . . 1 . . . Scrap Searched 9 | . . . . . . . 9 . . . . . . . . . . . Spaces Dug 93 | . . . . . 22 . . 29 9 10 . . 1 4 . 4 7 7 Terrain Destroyed 1291 | . . 3 . . 41 . . 48 9 16 1 6 172 182 23 17 59 714 Melee 49 | . . . . . . . . 28 9 10 . . . . . . . 2 Projectile 186 | . . . . . . . . 1 . 6 1 6 4 53 23 17 34 41 AOE 1056 | . . 3 . . 41 . . 19 . . . . 168 129 . . 25 671 Terrain Rammed . | . . . . . . . . . . . . . . . . . . . Walls Destroyed . | . . . . . . . . . . . . . . . . . . . Machines Disabled . | . . . . . . . . . . . . . . . . . . . Actions | -11 -10 -9 -9 -8 -8 -8 -8 -6 -5 -5 -5 -5 -5 -4 -4 -3 -3 -2 --------- Run | Yrd Mat Mat Min Mat Sto Rec Scr Fac Fac Ext Cet Arc Hub Fac Arm Res Qua Res Total 12844 | 31 156 316 29 113 1040 436 1459 981 604 1465 691 181 208 1085 719 690 1474 1166 Wait 651 | . . 39 . 2 118 . 4 19 34 77 95 46 1 68 48 15 54 31 Move 10243 | 29 148 224 29 102 775 413 1419 862 530 1146 514 121 196 835 427 552 1033 888 Hop 13 | . . 4 . 1 2 6 . . . . . . . . . . . . Pick Up 252 | . 5 12 . 2 14 5 12 11 4 19 22 2 . 24 34 26 39 21 Fast Attach 216 | 2 2 7 . . 21 . 3 19 5 22 8 . . 14 8 7 41 57 Attach 140 | . . 5 . 2 8 . 1 9 4 4 2 1 . 16 31 9 29 19 Detach 30 | . . . . . 5 . . 5 . . 1 . . . 5 3 7 4 Swap 136 | . . . . 1 6 . 2 2 2 12 5 2 5 19 25 17 27 11 Drop 327 | . . 9 . 1 27 5 14 16 3 27 26 3 2 19 33 29 68 45 Fire 579 | . . 16 . 2 59 7 2 6 . 8 18 6 4 86 103 32 155 75 Melee 120 | . . . . . . . 2 32 22 43 . . . . . . 12 9 Ram . | . . . . . . . . . . . . . . . . . . . Kick 9 | . . . . . . . . . . . . . . 4 . . 4 1 Crush 10 | . 1 . . . . . . . . . . . . . . . 4 5 Escape Stasis 26 | . . . . . . . . . . 26 . . . . . . . . Rewire 87 | . . . . . . . . . . 81 . . . . 5 . 1 . Trap . | . . . . . . . . . . . . . . . . . . . Miscellaneous 5 | . . . . . 5 . . . . . . . . . . . . . Route ------- -11/Scrapyard -10/Materials -9/Materials (discovered 2 exits: [*Min x2]) -9/Mines -8/Materials -8/Storage -8/Recycling (discovered 2 exits: *Fac / *Scr) -8/Scraptown (discovered 2 exits: *Fac x2) -6/Factory (discovered 5 exits: *Fac x3 / *Low x2) -5/Factory -5/Extension (discovered 3 exits: *Fac x2 / *Cet) -5/Cetus (discovered 3 exits: *Fac x2 / *Arc) -5/Archives (discovered 3 exits: *Fac / *Hub x2) -5/Hub_04(d) (discovered 4 exits: *Fac x4) -4/Factory (discovered 4 exits: Res / Upp x2 / *Arm) -4/Armory -3/Research (discovered 2 exits: *Qua x2) -3/Quarantine -2/Research (discovered 1 exit: Tes) History --------- Turn | Location | Event 3 | -11/Scrapyard | Discovered new exit (range 16) 19 | -11/Scrapyard | Entered Materials 87 | -10/Materials | Discovered new exit (range 15) 103 | -10/Materials | Entered another Materials area 103 | -9/Materials | Evolved 2 slots: Propulsion x2 144 | -9/Materials | Discovered new exit (range 14) 277 | -9/Materials | Discovered new exit (range 16) 282 | -9/Materials | Entered Mines 287 | -9/Mines | Discovered new exit (range 10) 290 | -9/Mines | Entered Materials 290 | -8/Materials | Evolved 2 slots: Propulsion x2 297 | -8/Materials | Lost 3 parts (1n2w) 323 | -8/Materials | Discovered new exit (range 4) 329 | -8/Materials | Entered Storage 402 | -8/Storage | Garrison activated, responded to threat 535 | -8/Storage | Lost 3 parts (3n) 569 | -8/Storage | Destroyed 9 combat bots 620 | -8/Storage | Lost 4 parts (1p3n) 778 | -8/Storage | Build established: Sprinter 907 | -8/Storage | Used back door to open Recycling access 907 | -8/Storage | Discovered new exit (range 4) 907 | -8/Storage | Identified exit to Recycling 907 | -8/Storage | Entered Recycling 908 | -8/Recycling | Joined Warlord attack on 0b10 via Recycling 1027 | -8/Recycling | Discovered new exit (range 7) 1038 | -8/Recycling | Identified exit to Factory 1042 | -8/Recycling | Scanned before Scraplab entrance 1046 | -8/Recycling | Entered Scraplab 1048 | -8/Recycling | Discovered new exit (range 3) 1048 | -8/Recycling | Identified exit to Scraptown 1049 | -8/Recycling | Entered Scraptown 1097 | -8/Scraptown | Visited TADAMA 1099 | -8/Scraptown | Visited Symbiants 1144 | -8/Scraptown | Discovered exit to Factory (range 11) 1163 | -8/Scraptown | Visited Bundlers 1225 | -8/Scraptown | Visited IN-MT5's Study 1252 | -8/Scraptown | Visited Shadow of the Wyrm 1274 | -8/Scraptown | Visited The Evicted 1291 | -8/Scraptown | Visited UFD Registry 1291 | -8/Scraptown | Registered with UFD as "Fluxbox" 1298 | -8/Scraptown | Visited Cave Peace 1342 | -8/Scraptown | Visited Chapter 10 1360 | -8/Scraptown | Visited Sword Containment 1380 | -8/Scraptown | Visited Science Guys 1483 | -8/Scraptown | Build established: Mutant 1529 | -8/Scraptown | Visited Scrap Suit Storage 1546 | -8/Scraptown | Visited Analyses Database 1568 | -8/Scraptown | Visited Observation Area 1577 | -8/Scraptown | Visited Curators Association 1605 | -8/Scraptown | Visited Botcube Research 1627 | -8/Scraptown | Visited Infowarlord's Domain 1649 | -8/Scraptown | Visited Cartography Club 1684 | -8/Scraptown | Found Surveybot 17 Chip 1788 | -8/Scraptown | Learned location of Lower Caves (-6) 1788 | -8/Scraptown | Learned location of Cetus (-5) 1788 | -8/Scraptown | Learned location of Armory (-4) 1788 | -8/Scraptown | Learned 12 Materials zone layouts 1788 | -8/Scraptown | Learned 12 Factory zone layouts 1788 | -8/Scraptown | Learned 16 Factory zone layouts 1788 | -8/Scraptown | Learned 4 Storage zone layouts 1788 | -8/Scraptown | Learned 12 Upper Caves zone layouts 1788 | -8/Scraptown | Learned 20 Upper Caves zone layouts 1788 | -8/Scraptown | Learned 24 Upper Caves zone layouts 1788 | -8/Scraptown | Learned 12 Proximity Caves zone layouts 1788 | -8/Scraptown | Learned 16 Proximity Caves zone layouts 1788 | -8/Scraptown | Learned 4 Hub_04(d) zone layouts 1788 | -8/Scraptown | Learned location of 3 exits from Factory 1788 | -8/Scraptown | Learned location of 3 exits from Proximity Caves 1853 | -8/Scraptown | Found Exp. Terrain Scanner 1896 | -8/Scraptown | Found Botcube 1935 | -8/Scraptown | Met Optimus 1935 | -8/Scraptown | Accepted into 0bPrime 1957 | -8/Scraptown | Civil war broke out across Scraptown 2007 | -8/Scraptown | Found System Spiker 2029 | -8/Scraptown | Discovered exit to Factory (range 3) 2033 | -8/Scraptown | Entered Factory 2033 | -6/Factory | Evolved 4 slots: Utility x4 2034 | -6/Factory | Identified exit to Lower Caves 2035 | -6/Factory | Identified exit to Factory 2055 | -6/Factory | Loaded intel: 8 recycling unit locations 2062 | -6/Factory | Lost 3 allies 2072 | -6/Factory | Learned location of Protoforge (-2) 2285 | -6/Factory | Spotted B-75 Beast 2330 | -6/Factory | Lost 4 parts (1p2n1u) 2340 | -6/Factory | Scrapoids reinforcements arrived? 2397 | -6/Factory | Lost 5 allies 2438 | -6/Factory | Lost 5 parts (1p2n2u) 2733 | -6/Factory | Search patrols dispatched 2774 | -6/Factory | Entered another Factory area 2774 | -5/Factory | Evolved 2 slots: Weapon x2 2900 | -5/Factory | Loaded intel: 8 recycling unit locations 2918 | -5/Factory | Garrison activated, responded to threat 3031 | -5/Factory | Scraphulk reinforcements arrived 3035 | -5/Factory | Discovered new exit (range 20) 3137 | -5/Factory | Identified exit to Extension 3225 | -5/Factory | Entered Extension 3225 | -5/Extension | Accompanied by 1 ally 3232 | -5/Extension | Build established: Gladiator 3315 | -5/Extension | Rescued A7 3324 | -5/Extension | Lost 3 parts (1n1u1w) 3463 | -5/Extension | Rescued a captive Derelict 3586 | -5/Extension | Rescued a captive Derelict 3850 | -5/Extension | Disrupted transfer network 3879 | -5/Extension | Build established: Commander-Gladiator 3894 | -5/Extension | Spotted B-75 Beast 3903 | -5/Extension | Spotted B-75 Beast 3927 | -5/Extension | Allies destroyed B-75 Beast 3949 | -5/Extension | Allies destroyed B-75 Beast 3968 | -5/Extension | Lost 8 parts (5n2u1w) 3978 | -5/Extension | Lost 6 allies 4089 | -5/Extension | Discovered new exit (range 10) 4099 | -5/Extension | Identified exit to Factory 4294 | -5/Extension | Rescued a captive Derelict 4349 | -5/Extension | Rescued a captive Derelict 4356 | -5/Extension | Rescued a captive Derelict 4392 | -5/Extension | Build established: Scavenger-Skirmisher 4412 | -5/Extension | Rescued a captive Derelict 4461 | -5/Extension | Discovered new exit (range 20) 4472 | -5/Extension | Discovered exit to Factory (range 15) 4600 | -5/Extension | Identified exit to Cetus 4631 | -5/Extension | Entered Cetus 4631 | -5/Cetus | Accompanied by 17 allies (A7) 4636 | -5/Cetus | Acquired a Cetus Manufacturing Module code from A7 4646 | -5/Cetus | Spotted Cetus Guard 4646 | -5/Cetus | Spotted Cetus Guard 4649 | -5/Cetus | Spotted Cetus Guard 4649 | -5/Cetus | Spotted Cetus Guard 4658 | -5/Cetus | Allies destroyed Cetus Guard 4668 | -5/Cetus | Allies destroyed Cetus Guard 4671 | -5/Cetus | Allies destroyed Cetus Guard 4673 | -5/Cetus | Allies destroyed Cetus Guard 4694 | -5/Cetus | Lost 3 allies 4736 | -5/Cetus | Started Cetus Manufacturing Module 4761 | -5/Cetus | Manufactured an Enhanced Grunt 4770 | -5/Cetus | Escorted A7 to Cetus Mainframe 4786 | -5/Cetus | Manufactured an Enhanced Grunt 4798 | -5/Cetus | Discovered new exit (range 20) 4811 | -5/Cetus | Manufactured an Enhanced Grunt 4825 | -5/Cetus | Spotted Cetus Guard 4826 | -5/Cetus | Spotted Cetus Guard 4827 | -5/Cetus | Spotted Cetus Guard 4829 | -5/Cetus | Spotted Cetus Guard 4835 | -5/Cetus | Allies destroyed Cetus Guard 4836 | -5/Cetus | Manufactured an Enhanced Grunt 4844 | -5/Cetus | Destroyed Cetus Guard 4847 | -5/Cetus | Destroyed Cetus Guard 4849 | -5/Cetus | Discovered exit to Factory (range 20) 4855 | -5/Cetus | Allies destroyed Cetus Guard 4861 | -5/Cetus | Manufactured an Enhanced Grunt 4865 | -5/Cetus | Met Revision 17 4939 | -5/Cetus | Extracted ID and sensor layout for unrecognized location from A7's data core 5081 | -5/Cetus | Build established: Commander-Skirmisher 5114 | -5/Cetus | Discovered exit to Factory (range 18) 5219 | -5/Cetus | Found a strange terminal 5337 | -5/Cetus | Identified exit to Archives 5381 | -5/Cetus | Security sweep announced 5459 | -5/Cetus | Entered Archives 5459 | -5/Archives | Accompanied by 15 allies 5485 | -5/Archives | Discovered exit to Factory (range 17) 5500 | -5/Archives | Discovered new exit (range 20) 5513 | -5/Archives | Unable to access archive contents 5527 | -5/Archives | Discovered new exit (range 18) 5597 | -5/Archives | Identified exit to Hub_04(d) 5692 | -5/Archives | Entered Hub_04(d) 5692 | -5/Hub_04(d) | Accompanied by 15 allies 5777 | -5/Hub_04(d) | Discovered exit to Factory (range 20) 5890 | -5/Hub_04(d) | Network Hub disabled 5892 | -5/Hub_04(d) | Core integrity fell below 50% 5899 | -5/Hub_04(d) | Discovered exit to Factory (range 13) 5901 | -5/Hub_04(d) | Spotted Lightning 5939 | -5/Hub_04(d) | Spotted Lightning 5940 | -5/Hub_04(d) | Spotted Lightning 5945 | -5/Hub_04(d) | System corruption reached 10% 5948 | -5/Hub_04(d) | Entered Factory 5948 | -4/Factory | Evolved 2 slots: Power x1, Utility x1 5951 | -4/Factory | Lost 9 allies 6165 | -4/Factory | Build established: Scavenger-Skirmisher 6198 | -4/Factory | Repaired Carbon-fiber Leg 6198 | -4/Factory | First assault squad dispatched 6205 | -4/Factory | Identified exit to Upper Caves 6205 | -4/Factory | Identified exit to Armory 6533 | -4/Factory | Lost 5 parts (2n2u1w) 6632 | -4/Factory | Lost 3 parts (1p1u1w) 6685 | -4/Factory | Build established: Scavenger-Tank 6809 | -4/Factory | Scrapoids reinforcements arrived? 6941 | -4/Factory | Scraphulk reinforcements arrived? 7042 | -4/Factory | Spotted B-86 Titan 7161 | -4/Factory | Garrison activated, responded to threat 7182 | -4/Factory | Build established: Scavenger-Skirmisher 7209 | -4/Factory | Discovered new exit (range 20) 7270 | -4/Factory | Lost 6 parts (1n3u2w) 7416 | -4/Factory | Entered Armory 7447 | -4/Armory | Lost 4 parts (1p1n2w) 7575 | -4/Armory | Build established: Scavenger-Tank 7916 | -4/Armory | First assault squad dispatched 7946 | -4/Armory | Lost 6 parts (1p3n1u1w) 7990 | -4/Armory | Scraphulk reinforcements arrived 8318 | -4/Armory | Destroyed 7 combat bots 8351 | -4/Armory | Discovered new exit (range 8) 8416 | -4/Armory | Lost 10 parts (2p4n2u2w) 8417 | -4/Armory | Destroyed 8 combat bots 8436 | -4/Armory | Entered Research 8436 | -3/Research | Evolved 2 slots: Utility x2 8465 | -3/Research | Lost 3 parts (1n1u1w) 8636 | -3/Research | Revision forces began assault on 0b10 8666 | -3/Research | Met up with Revision 17++ 8852 | -3/Research | Build established: Scavenger-Gunner 8895 | -3/Research | Identified exit to Quarantine 9136 | -3/Research | Research terminal network offline 9182 | -3/Research | Scraphulk reinforcements arrived 9291 | -3/Research | Entered Quarantine 9291 | -3/Quarantine | Accompanied by 1 ally 9300 | -3/Quarantine | Found Alien Reactor 9386 | -3/Quarantine | Found Alien Artifact 9386 | -3/Quarantine | Identified Terrabomb 9386 | -3/Quarantine | Used Terrabomb 9394 | -3/Quarantine | Found Terrabomb 9490 | -3/Quarantine | Spotted Alpha 7 9507 | -3/Quarantine | Destroyed Alpha 7 9541 | -3/Quarantine | First assault squad dispatched 9545 | -3/Quarantine | Found Prototype Processor 9545 | -3/Quarantine | Identified Exp. Targeting Computer 9613 | -3/Quarantine | Identified Matter Drive 9625 | -3/Quarantine | Found Alien Launcher 9625 | -3/Quarantine | Identified Sigix Terminator 9810 | -3/Quarantine | Found Prototype Hackware 9810 | -3/Quarantine | Identified Exp. Hacking Suite 9884 | -3/Quarantine | Scanned by Researcher 9899 | -3/Quarantine | Found Alien Slashing Weapon 10062 | -3/Quarantine | Lost 5 parts (2p1n2w) 10067 | -3/Quarantine | Destroyed 12 combat bots 10152 | -3/Quarantine | Identified Sigix Broadsword 10161 | -3/Quarantine | System corruption reached 10% 10360 | -3/Quarantine | Found Alien Artifact 10366 | -3/Quarantine | Found Alien Artifact 10366 | -3/Quarantine | Identified Transdimensional Reconstructor 10366 | -3/Quarantine | Warped through subspace 10388 | -3/Quarantine | Found Spectral Analyzer 10502 | -3/Quarantine | Found Alien Artifact 10527 | -3/Quarantine | Identified Dimensional Node Initializer 10527 | -3/Quarantine | Initialized slip node 10534 | -3/Quarantine | Found Exp. Terrain Scan Processor 10710 | -3/Quarantine | Lost 3 parts (1n2w) 10825 | -3/Quarantine | Botcube activated 11054 | -3/Quarantine | Identified Subatomic Replicator 11054 | -3/Quarantine | Used Subatomic Replicator to replicate Adv. Transmission Jammer 11057 | -3/Quarantine | Found Alien Artifact 11061 | -3/Quarantine | Core integrity fell below 50% 11096 | -3/Quarantine | System corruption reached 30% 11124 | -3/Quarantine | Lost 7 parts (1p3n2u1w) 11158 | -3/Quarantine | Cryocooling Duct disabled 11173 | -3/Quarantine | Ambient heat levels rising (+20) 11173 | -3/Quarantine | Non-combat units ordered to evacuate 11201 | -3/Quarantine | Used Terrabomb 11214 | -3/Quarantine | Discovered new exit (range 16) 11221 | -3/Quarantine | Identified exit to Research 11227 | -3/Quarantine | Lost 5 parts (2p1n1u1w) 11244 | -3/Quarantine | Entered Research 11244 | -2/Research | Evolved 2 slots: Utility x2 11245 | -2/Research | Identified exit to Testing 11275 | -2/Research | Scrapoid reinforcements arrived 11516 | -2/Research | Scraphulk reinforcements arrived? 11567 | -2/Research | Found Scrap Suit 11644 | -2/Research | Lost 5 allies 11647 | -2/Research | Fabricated B-74 Champion (x3) 11658 | -2/Research | System corruption reached 10% 11701 | -2/Research | Lost 14 parts (2p5n3u4w) 11859 | -2/Research | Found Scrap Suit 11994 | -2/Research | First assault squad dispatched 12304 | -2/Research | Spotted B-90 Cyclops 12424 | -2/Research | Fired Sigix Terminator 12445 | -2/Research | Destroyed 11 combat bots 12451 | -2/Research | Core integrity fell below 50% 12510 | -2/Research | Lost 25 parts (3p5n10u7w) 12510 | -2/Research | Core integrity fell below 20% 12598 | -2/Research | Destroyed by C-57 Dissector with Dual-blade Saw Last Messages --------------- 12564_ System corrupted: Matter fused (-2). 12567_ ALERT: Suspicious intruders detected, dispatching Cutter reinforcements to area. 12568_ Knocked back. 12568_ C-57 Dissector knocked back. 12573_ Critical hit (Burn: +37). 12578_ Slammed into C-57 Dissector. 12580_ Enh. Biometal Leg severed. 12581_ Slammed into C-57 Dissector. 12581_ Centrium Leg severed. 12582_ Slammed into C-57 Dissector. 12583_ System corrupted: Matter fused (-6). 12583_ Slammed into C-57 Dissector. 12585_ Acquired Field Propulsion Array. 12586_ Critical hit (Burn: +37). 12586_ Dropped Adv. Medium Treads. 12586_ Exp. Terrain Scan Processor severed. 12597_ Knocked back. 12598_ Dropped Gamma Rifle. [Achievement: Torch] Map ----- +----------------------------------------------------+ | ??????### """ #????????????????????????? | | #+####??# #????????????????????????? | | # # #????????????????????????? | | #! + #????????????????????????? | | # # ######## #????????????????????????? | | # ??# #??????# #????????????????????????? | | # ????# #??????# #????????????????????????? | | ##??????# #??????# #?????###+###????????????? | | ??????###/######## ##????# #????????????? | | ??????# === # *###### !#????????????? | | ??????# + H #????????????? | | ??????# """"" # !###### #????????????? | | ??????# """"" ## ##????#! #????????????? | | ??????# """"" ## #??######+#######????????? | | ??????# ## #??# #????????? | | ??????# ## #??# #????????? | | ??????# ## #??# #????????? | | ###########+###### ##?# c/ #????????? | | # #????????? | | # #????????? | | + #????????? | | # #????????? | | ### #######+# #????????? | | #?# ## # ##???????? | | #?# """ ## # c #???????? | | #?# """ # # [@ #???????? | | #?# """ # ####### ##????????? | | #?# """ + #???????####??????????? | | #?# """ # #?????????????????????? | | #?# """ ## #?????????????????????? | | #?# """ ## #?????????????????????? | | #?# ## #?????????????????????? | | #?# ## #?????????????????????? | | #?# ## #?????????????????????? | | #?# ## #?????????????????????? | | ??# #? #?????????????????????? | | ??# #? #?????????????????????? | | ??# #?#######?????????????????????? | | #?# #?????????????????????????????? | | ??# #?????????????????????????????? | | ??# #### #??????###????????????????????? | | ???# #??# ########%#######"####?????????? | | ???# #??# = #?????????? | | ?####+###### "#????????? | | ?#! ###################### ##????????? | | ?# #????????????????????# #?????????? | | ?# #?????????????###????# #?????????? | | ?# #???????##????# #????# ########??? | | ?# #?????###"#####"#????# # #??? | | ?# #?????# #????# # !! #??? | +----------------------------------------------------+ Best States ------------- Heat Dissipation 186 Coolant Potential 80 Energy Generation 57 Energy Capacity 590 Matter Stores 300 Matter Capacity 300 Sight Range 24 Terrain Scan Range 30 Terrain Scan Density 1210 ECM Strength 1 Jamming Range 16 Power Amplification 30 Additional Mass Support 16 Base Temperature (-) 150 EM Shielding 3 Armor Coverage 750 Resistance: EM 15 Propulsion Shielding 66 Weapon Cycling 25 Melee Speed Boost 20 Phase Shifting 15 Evasion (%) 70 Targeting Accuracy 12 Melee Accuracy 10 Target Analysis 8 Armor Integrity Analysis 30 Recoil Reduction 4 Energy Filtering 30 Salvage Targeting 7 Offensive Hacking 16 Item Schematics ----------------- Phase Shifter | -6/Factory | Downloaded Shock Maul | -6/Factory | Scanalyzed Hyp. Mass Driver | -5/Extension | Hacked Graviton Reactor | -3/Quarantine | Archive Adv. Plasma Rifle | -3/Quarantine | Archive Adv. EM Shield | -3/Quarantine | Archive Exp. Hacking Suite | -3/Quarantine | Archive Exp. Optical Array | -3/Quarantine | Archive Hvy. Proton Cannon | -3/Quarantine | Archive Exp. Target Analyzer | -3/Quarantine | Archive Robot Schematics ------------------ A-02 Transporter | -3/Quarantine | Archive C-55 Analyst | -3/Quarantine | Archive Fabricated ------------ B-74 Champion | x3 | -2/Research | Preloaded Repaired ---------- Carbon-fiber Leg | 14% | -4/Factory Alien Tech Used ----------------- Terrabomb Matter Drive Sigix Terminator Sigix Broadsword Transdimensional Reconstructor Dimensional Node Initializer Subatomic Replicator Achievements -------------- Revolutionary Research Torch Challenges ------------ None Game ------ Seed CloakingBattleScreen Manual? 0 Play Time 04:07:36 Cumulative 193.8 hours Start 2025.05.24 @ 14:45:58 End 2025.05.24 @ 19:29:10 Sessions 1 Manual Loads 0 Difficulty Rogue Special Mode None Game No. 216 Rogue 216 Adventurer 0 Explorer 0 Win Type - Total 1 Types 1/0/0/0/0/0/0/0/0/0 Lore% 73 Gallery% 71 Achievement% 62 Wizard Run 0 Options --------- Layout 1 ASCII 0 Keyboard 0 Movement Numpad Keybinds 0 Fullscreen 1 Font 24/Smallcaps Map View 50x35 Zoom Use 0% Tactical HUD 1 Map Filters NONE Filters NONE Steam 1 RUN: 1e0095cb-975f-4f02-8d69-63ad9e0406c5